bitfinex/quotes_ETHUSD_20240618
["timestamp","ask_amount","ask_price","bid_price","bid_amount"]
[1718721478999,2.91079,3435.5,3434.1,2.771]
[1718721479208,0.291079,3435.4,3434.2,0.05822843]
[1718721479434,2.9107,3435.6,3434.1,0.56832]
[1718721479637,0.291043,3435.9,3434.1,0.7325]
[1718721479943,2.91054,3435.8,3434.1,6.64445]
[1718721480265,2.91054,3435.8,3434.2,1.232758]
[1718721480266,0.8816123,3435.8,3434.2,1.232758]
[1718721480570,0.8816123,3435.8,3434.2,1.29098183]
[1718721480876,2.91062,3435.7,3434.2,1.232758]
[1718721481103,2.91031,3436.1,3434.2,1.232758]
[1718721481104,2.91011,3436.3,3434.6,5.68246]
[1718721481240,2.91,3436.5,3434.9,2.91129]
[1718721481430,2.91004,3436.4,3435.0,0.05821638]
[1718721481631,3.200992,3436.5,3435.0,0.05821638]
[1718721481969,0.3200992,3436.4,3434.9,3.0]
[1718721482182,0.3200992,3436.4,3434.9,2.91126]
[1718721482379,2.90961,3436.9,3435.3,2.9109]
[1718721482534,2.668,3437.2,3435.5,0.7325]
[1718721482735,0.05070508,3438.1,3436.1,2.9102]
[1718721482736,2.90895,3437.7,3436.1,2.9102]
[1718721482975,2.90883,3437.8,3436.2,5.96837653]
[1718721483148,0.560315,3437.8,3436.4,2.90998]
[1718721483354,2.90833,3438.4,3436.8,2.90968]
[1718721483682,0.560261,3438.5,3436.9,4.37263573]
[1718721483831,2.90809,3438.7,3437.0,2.90943]
[1718721484171,2.7027,3439.2,3437.1,3.05817671]
[1718721484172,3.489769,3438.6,3437.1,3.05817671]
[1718721484389,2.90807,3438.7,3437.1,0.05817671]
[1718721484541,2.90841,3438.4,3437.1,3.0]
[1718721484872,2.90823,3438.6,3437.2,0.05818028]
[1718721485044,2.90802,3438.8,3437.2,0.05818028]
[1718721485247,2.90788,3439.0,3437.3,0.05818027]
[1718721485248,2.90808,3438.7,3437.3,0.05818027]
[1718721485453,3.48967,3438.7,3437.3,0.05818027]
[1718721486079,2.90847,3438.3,3437.0,3.0]
[1718721486285,2.90861,3438.1,3436.9,0.7325]
[1718721486634,2.90876,3437.9,3436.9,0.7325]
[1718721486945,2.90876,3437.9,3436.7,3.0]
[1718721486946,2.90877,3437.9,3436.7,3.0]
[1718721487151,2.90896,3437.7,3436.2,3.7325]
[1718721487360,2.90862,3438.1,3436.3,0.05819435]
[1718721487361,2.90905,3437.6,3436.3,0.05819435]
[1718721487750,2.90925,3437.4,3436.2,3.7325]
[1718721487974,2.90884,3437.8,3436.2,3.7325]
[1718721488141,0.55,3437.7,3436.2,3.7325]
[1718721488839,2.90875,3437.9,3436.3,0.0581944]
[1718721489159,2.90875,3437.9,3436.4,0.86115916]
[1718721489335,2.90906,3437.6,3436.5,0.05818763]
[1718721489534,2.90912,3437.5,3436.4,0.86115916]
[1718721489774,3.5466692,3437.7,3436.2,3.7325]
[1718721489983,2.90878,3437.9,3436.4,0.05819358]
[1718721490443,0.40398,3438.4,3436.6,2.771]
[1718721490634,0.40398,3438.4,3436.8,2.90967]
[1718721490832,0.331227,3438.3,3437.1,2.771]
[1718721491036,2.90776,3439.1,3437.3,0.7325]
[1718721491274,2.90776,3439.1,3437.4,0.05817106]
[1718721491275,2.90811,3438.7,3437.4,0.05817106]
[1718721491486,3.198981,3438.6,3437.3,0.7325]
[1718721491644,2.90776,3439.1,3437.4,0.05817501]
[1718721492009,2.90788,3439.0,3437.6,2.771]
[1718721492180,2.90788,3439.0,3437.7,0.05817107]
[1718721492181,2.908,3438.8,3437.7,0.05817107]
[1718721492556,2.908,3438.8,3437.7,3.05817107]
[1718721492752,0.581555,3438.9,3437.7,3.05817107]
[1718721492957,2.4741,3439.4,3437.7,3.05817107]
[1718721492958,2.3551,3440.0,3438.1,2.771]
[1718721493191,2.90703,3440.0,3438.6,2.771]
[1718721493354,2.90674,3440.3,3438.7,0.05815384]
[1718721493554,2.3551,3440.6,3438.7,0.05815384]
[1718721493555,1.011377,3440.4,3438.8,0.05815546]
[1718721493859,2.90689,3440.2,3438.8,0.05815546]
[1718721494052,2.90672,3440.3,3438.8,0.05815546]
[1718721494492,2.90665,3440.4,3438.8,0.05815546]
[1718721494693,2.3942,3441.1,3438.9,0.58291555]
[1718721494899,2.3942,3441.1,3439.3,2.771]
[1718721494900,2.9064,3440.7,3439.3,2.771]
[1718721495075,2.90691,3440.1,3439.4,3.0]
[1718721495393,2.90662,3440.5,3439.4,3.0]
[1718721495706,2.90676,3440.3,3439.4,3.0]
[1718721495858,0.581336,3440.3,3439.4,3.0]
[1718721496058,2.90667,3440.4,3439.4,3.0]
[1718721496258,2.90656,3440.5,3439.4,3.0]
[1718721496499,2.90672,3440.3,3439.4,3.0]
[1718721497083,0.581328,3440.3,3439.4,3.0]
[1718721497301,2.90677,3440.3,3439.4,3.0]
[1718721497664,2.90682,3440.2,3439.4,3.0]
[1718721498202,2.90705,3440.0,3439.4,3.0]
[1718721498362,2.90665,3440.4,3438.9,3.0]
[1718721498558,2.90656,3440.5,3439.3,2.771]
[1718721498758,2.90656,3440.5,3439.4,3.0]
[1718721498998,2.90665,3440.4,3439.4,3.0]
[1718721499363,0.553985,3440.8,3439.4,3.0]
[1718721499364,0.553985,3440.8,3439.8,2.771]
[1718721499565,2.90607,3441.1,3439.9,3.05813183]
[1718721499765,2.90557,3441.7,3439.9,3.05813183]
[1718721499998,0.825781,3441.7,3440.3,2.771]
[1718721500196,2.90555,3441.7,3440.4,3.05812221]
[1718721500402,2.4896,3442.5,3440.4,3.05812221]
[1718721500588,2.90567,3441.6,3440.4,3.05812221]
[1718721500793,2.90571,3441.5,3440.4,3.05812221]
[1718721500972,3.486848,3441.5,3440.4,3.05812221]
[1718721501393,0.581138,3441.5,3440.4,3.0]
[1718721501574,2.9058,3441.4,3440.4,3.0]
[1718721501994,2.90588,3441.3,3440.4,3.0]
[1718721502195,2.90617,3441.0,3440.4,3.0]
[1718721502405,2.90602,3441.2,3440.4,3.0]
[1718721502611,2.90582,3441.4,3440.4,3.0]
[1718721502933,0.290582,3441.3,3440.4,3.0]
[1718721503233,2.90587,3441.3,3440.4,3.0]
[1718721503582,2.90609,3441.1,3440.4,3.0]
[1718721503785,2.90596,3441.2,3440.4,3.0]
[1718721503981,2.90577,3441.5,3440.4,3.0]
[1718721504221,2.90553,3441.8,3440.5,0.05812765]
[1718721504222,2.90566,3441.6,3440.5,0.05812765]
[1718721504688,2.4896,3442.5,3440.5,0.05812765]
[1718721504891,0.539437,3442.4,3441.3,2.771]
[1718721505203,2.51902948,3443.2,3441.3,2.771]
[1718721505204,2.90513,3442.2,3441.3,2.771]
[1718721505404,2.90463,3442.8,3441.3,2.771]
[1718721505625,2.90512,3442.2,3441.3,2.771]
[1718721505790,2.90503,3442.3,3441.3,2.771]
[1718721505993,0.290503,3442.3,3441.3,2.771]
[1718721506320,2.90504,3442.3,3441.3,2.771]
[1718721506488,2.90485,3442.6,3441.4,3.0]
[1718721507316,2.90473,3442.7,3441.5,0.05810875]
[1718721507526,2.90468,3442.8,3441.5,0.05810875]
[1718721507760,2.90473,3442.7,3441.6,0.2863]
[1718721508055,3.485631,3442.7,3441.6,0.2863]
[1718721508209,2.90478,3442.6,3441.6,0.2863]
[1718721508608,2.90395,3443.6,3441.6,0.2863]
[1718721508609,2.90402,3443.5,3442.1,2.771]
[1718721508848,2.90426,3443.3,3442.2,0.2771]
[1718721509147,2.90426,3443.3,3442.2,3.0]
[1718721509444,2.90427,3443.3,3442.2,3.0]
[1718721509653,2.90413,3443.4,3442.2,3.0]
[1718721509945,2.90411,3443.4,3442.2,3.0]
[1718721510148,2.90466,3442.8,3442.2,3.0]
[1718721510537,2.4848,3443.6,3441.1,2.771]
[1718721510784,2.90463,3442.8,3441.0,0.2863]
[1718721511052,2.90504,3442.3,3441.1,0.01585214]
[1718721511250,2.90504,3442.3,3441.1,2.82911313]
[1718721511418,2.90529,3442.0,3441.1,2.771]
[1718721511620,0.345529,3442.0,3441.2,3.0]
[1718721511842,2.90525,3442.1,3441.1,2.771]
[1718721512278,2.90503,3442.4,3441.1,2.771]
[1718721512567,2.90512,3442.2,3441.2,0.37878891]
[1718721512774,2.90536,3442.0,3441.1,2.771]
[1718721512920,2.90562,3441.7,3441.1,2.771]
[1718721513267,2.9051,3442.3,3441.2,3.0]
[1718721513570,2.90521,3442.1,3441.2,3.0]
[1718721513719,2.90538,3441.9,3441.2,3.0]
[1718721514042,2.90563,3441.6,3441.2,3.0]
[1718721514226,2.90554,3441.7,3441.2,3.0]
[1718721514734,2.90537,3441.9,3441.2,3.0]
[1718721515058,5.38916,3443.1,3441.2,3.0]
[1718721515059,2.90586,3441.4,3441.2,3.0]
[1718721515241,2.90572,3441.5,3441.0,0.28887269]
[1718721515448,2.90595,3441.3,3440.7,3.0]
[1718721515762,2.90567,3441.6,3440.7,3.0]
[1718721516055,2.90567,3441.6,3440.6,2.771]
[1718721516056,0.581114,3441.5,3440.6,0.29610976]
[1718721516278,0.581114,3441.5,3438.8,7.43]
[1718721516279,2.90681,3440.2,3439.8,3.0]
[1718721516421,2.90596,3441.2,3440.1,2.771]
[1718721516621,2.90613,3441.0,3440.1,2.771]
[1718721516820,0.290561,3441.6,3439.3,0.2863]
[1718721516821,2.90578,3441.5,3440.6,2.771]
[1718721517124,2.90637,3440.8,3440.6,2.771]
[1718721517281,2.90612,3441.1,3440.6,2.771]
[1718721517437,2.90605,3441.1,3440.6,2.771]
[1718721517760,2.90596,3441.2,3440.6,2.771]
[1718721517929,2.90615,3441.0,3440.6,2.771]
[1718721518130,2.90638,3440.7,3440.6,2.771]
[1718721518349,0.8694776,3442.0,3440.6,2.771]
[1718721518553,2.9057,3441.6,3440.6,2.771]
[1718721518852,0.8694776,3442.0,3440.6,2.771]
[1718721519074,2.4991,3442.2,3441.6,2.771]
[1718721519075,2.90512,3442.2,3441.6,2.771]
[1718721519276,2.90473,3442.7,3441.6,2.771]
[1718721519495,2.90481,3442.6,3441.6,2.771]
[1718721519754,2.90511,3442.2,3441.6,2.771]
[1718721519974,2.90571,3441.5,3441.1,3.0]
[1718721520402,2.5234,3442.8,3441.1,2.771]
[1718721520403,2.90476,3442.7,3441.1,2.771]
[1718721520686,2.90565,3441.6,3441.2,3.0]
[1718721520886,2.90565,3441.6,3441.1,2.771]
[1718721521052,2.90563,3441.6,3441.1,2.771]
[1718721521252,2.90547,3441.8,3441.1,2.771]
[1718721521253,2.90555,3441.7,3441.1,2.771]
[1718721521449,2.90513,3442.2,3441.1,3.0481]
[1718721521708,0.25234,3442.7,3441.1,3.0481]
[1718721521874,2.90581,3441.4,3441.1,2.771]
[1718721522051,2.90596,3441.2,3441.1,2.771]
[1718721522397,2.90606,3441.1,3440.7,3.0]
[1718721522960,2.90576,3441.5,3440.7,3.0]
[1718721522961,2.9063,3440.8,3440.7,3.0]
[1718721523203,2.90621,3441.0,3440.6,2.771]
[1718721523399,2.90561,3441.7,3440.6,2.771]
[1718721523584,2.90561,3441.7,3441.1,2.771]
[1718721523585,2.90554,3441.7,3441.1,2.771]
[1718721524186,2.90566,3441.6,3441.1,2.771]
[1718721524389,2.90527,3442.1,3441.1,2.771]
[1718721524556,2.90538,3441.9,3441.2,3.0]
[1718721524901,2.90564,3441.6,3441.2,3.0]
[1718721525054,2.90572,3441.5,3441.2,3.0]
[1718721525479,2.90554,3441.7,3441.2,3.0]
[1718721525894,2.90564,3441.6,3441.2,3.0]
[1718721526198,2.90587,3441.3,3441.2,3.0]
[1718721526359,2.90554,3441.7,3441.2,3.0]
[1718721526360,2.90581,3441.4,3441.2,3.0]
[1718721526957,2.90581,3441.4,3441.1,2.771]
[1718721526958,2.90594,3441.3,3441.1,2.771]
[1718721527602,2.90596,3441.2,3441.1,2.771]
[1718721527903,0.290554,3441.6,3441.1,2.771]
[1718721527904,2.9058,3441.4,3441.1,3.0]
[1718721528105,2.9058,3441.4,3440.8,3.0]
[1718721528264,2.90589,3441.3,3440.7,3.0]
[1718721528463,2.90628,3440.9,3440.7,3.0]
[1718721528778,2.90573,3441.5,3440.6,2.771]
[1718721529105,2.90605,3441.1,3440.6,2.771]
[1718721529394,2.90554,3441.7,3440.6,2.771]
[1718721529647,2.90622,3440.9,3440.6,2.771]
[1718721529928,2.90554,3441.7,3440.3,3.0]
[1718721529929,2.90662,3440.5,3440.3,3.0]
[1718721530060,2.90648,3440.6,3440.2,3.0]
[1718721530259,2.90637,3440.8,3440.2,3.0]
[1718721530508,2.4039,3441.4,3440.2,3.0]
[1718721530509,3.2544814,3441.4,3440.2,3.0]
[1718721530673,3.2544814,3441.4,3439.6,0.30069923]
[1718721530674,3.55,3441.3,3439.6,0.30069923]
[1718721530877,2.90706,3439.9,3439.2,5.771]
[1718721531202,2.90732,3439.6,3439.2,5.771]
[1718721531418,2.90723,3439.7,3439.2,5.771]
[1718721531419,2.90724,3439.7,3439.2,5.771]
[1718721531567,2.90714,3439.9,3439.2,5.771]
[1718721531568,2.90715,3439.8,3439.2,5.771]
[1718721531767,2.90715,3439.8,3439.2,2.771]
[1718721531968,2.90725,3439.7,3439.2,2.771]
[1718721532490,2.4634,3440.3,3439.2,2.771]
[1718721532699,2.90712,3439.9,3439.2,2.771]
[1718721532999,2.90729,3439.7,3439.2,2.771]
[1718721533869,2.90707,3439.9,3439.2,2.771]
[1718721533870,2.9075,3439.4,3439.2,2.771]
[1718721535419,2.90741,3439.5,3439.2,2.771]
[1718721535702,0.63639,3439.9,3439.2,2.771]
[1718721535892,2.90787,3439.0,3438.7,5.771]
[1718721536213,2.90795,3438.9,3438.7,5.771]
[1718721536364,2.90799,3438.8,3438.7,2.771]
[1718721536962,2.90777,3439.1,3438.7,2.771]
[1718721537264,2.90777,3439.1,3438.2,3.0]
[1718721537265,0.55,3439.8,3439.0,2.771]
[1718721537464,2.90759,3439.3,3439.0,2.771]
[1718721537706,2.90765,3439.2,3439.0,2.771]
[1718721538185,2.90773,3439.1,3439.0,2.771]
[1718721538387,2.90756,3439.3,3439.0,2.771]
[1718721538561,2.90749,3439.4,3439.0,2.771]
[1718721538761,3.6562,3441.0,3439.0,2.771]
[1718721538762,3.197108,3440.6,3439.0,2.771]
[1718721538991,2.90724,3439.7,3439.0,2.771]
[1718721539389,2.90706,3439.9,3439.0,2.771]
[1718721539614,2.90695,3440.1,3439.1,0.2771]
[1718721539761,2.90697,3440.0,3439.0,2.771]
[1718721539965,3.197108,3440.6,3439.0,2.771]
[1718721539966,2.90773,3439.1,3439.0,2.771]
[1718721540163,2.90773,3439.1,3438.5,2.771]
[1718721540578,2.90773,3439.1,3438.6,3.0]
[1718721540790,0.872286,3439.1,3438.5,2.771]
[1718721541005,2.90807,3438.7,3438.5,2.771]
[1718721541624,2.90779,3439.1,3438.5,2.771]
[1718721541767,2.5631,3439.7,3438.5,2.771]
[1718721541963,2.90757,3439.3,3438.5,2.771]
[1718721542173,2.90782,3439.1,3438.5,2.771]
[1718721542409,2.90751,3439.4,3438.5,2.771]
[1718721542615,0.55,3439.3,3438.5,2.771]
[1718721542815,4.004375,3439.6,3438.5,2.771]
[1718721542816,3.5641875,3439.5,3438.5,2.771]
[1718721543024,0.547025,3439.6,3438.5,2.771]
[1718721543305,2.90732,3439.6,3438.6,3.0]
[1718721543516,2.9069,3440.1,3438.6,3.0]
[1718721543671,2.90763,3439.3,3438.6,3.0]
[1718721543867,2.90718,3439.8,3439.0,2.771]
[1718721544070,2.90602,3441.2,3439.0,2.771]
[1718721544071,6.19752,3441.2,3439.0,2.771]
[1718721544338,2.90638,3440.8,3440.1,2.771]
[1718721544470,2.90618,3441.0,3440.1,2.771]
[1718721544671,2.90647,3440.6,3440.1,2.771]
[1718721544973,2.90631,3440.8,3440.1,2.771]
[1718721545168,1.10979,3440.8,3440.1,2.771]
[1718721545397,2.90648,3440.6,3440.1,2.771]
[1718721545607,2.90639,3440.7,3440.1,2.771]
[1718721545812,2.4914,3441.6,3440.1,2.771]
[1718721546014,2.90595,3441.3,3440.6,2.771]
[1718721546209,2.90578,3441.5,3440.6,2.771]
[1718721546416,2.90605,3441.1,3440.6,2.771]
[1718721546779,3.445538,3441.4,3440.6,2.771]
[1718721547381,0.539718,3441.4,3440.6,2.771]
[1718721547591,2.90597,3441.2,3440.6,2.771]
[1718721547797,2.90597,3441.2,3440.2,3.0]
[1718721547798,2.9065,3440.6,3440.2,3.0]
[1718721548090,2.90638,3440.7,3440.1,2.771]
[1718721548091,2.90656,3440.5,3440.1,2.771]
[1718721548480,0.539718,3441.4,3440.1,2.771]
[1718721548710,2.90573,3441.5,3440.6,2.771]
[1718721549078,5.5293,3442.1,3440.7,3.0]
[1718721549079,2.90546,3441.8,3440.7,3.0]
[1718721549421,2.5293,3442.1,3440.7,3.0]
[1718721549422,2.90554,3441.7,3441.1,2.771]
[1718721549773,5.4949,3442.6,3441.6,2.771]
[1718721550018,2.90519,3442.2,3441.6,2.771]
[1718721550223,2.90519,3442.2,3441.1,2.771]
[1718721550387,2.9052,3442.1,3441.2,3.0]
[1718721551217,2.90529,3442.0,3441.2,3.0]
[1718721551820,2.90512,3442.2,3441.2,3.0]
[1718721552016,2.90488,3442.5,3441.2,3.0]
[1718721552256,2.90439,3443.1,3442.0,2.771]
[1718721552419,2.90513,3442.2,3442.0,2.771]
[1718721552611,2.90472,3442.7,3442.0,2.771]
[1718721552809,2.90489,3442.5,3442.0,2.771]
[1718721553044,2.90455,3442.9,3442.0,2.771]
[1718721553045,2.90479,3442.6,3442.0,2.771]
[1718721553248,2.90511,3442.3,3442.0,2.771]
[1718721553658,2.90513,3442.2,3442.0,2.771]
[1718721553819,2.90479,3442.6,3441.5,2.771]
[1718721554027,2.90479,3442.6,3441.0,2.771]
[1718721554028,2.90583,3441.4,3441.0,2.771]
[1718721554332,2.90571,3441.5,3441.0,2.771]
[1718721554537,2.90604,3441.1,3441.0,2.771]
[1718721554756,2.90569,3441.6,3441.0,2.771]
[1718721555074,2.90537,3441.9,3441.0,2.771]
[1718721555262,2.3426,3442.2,3441.0,2.771]
[1718721555467,2.3426,3442.2,3438.7,0.58424946]
[1718721555468,2.90594,3441.3,3440.6,2.771]
[1718721555772,2.9058,3441.4,3440.6,2.771]
[1718721555939,2.90588,3441.3,3441.1,2.771]
[1718721556137,2.90596,3441.2,3441.1,2.771]
[1718721556379,5.81192,3441.2,3441.1,2.771]
[1718721556542,2.90596,3441.2,3440.6,2.771]
[1718721556743,2.90638,3440.7,3440.6,2.771]
[1718721557372,5.81276,3440.7,3440.6,2.771]
[1718721557575,2.90663,3440.4,3440.3,1.164246]
[1718721558385,0.579769,3442.0,3440.3,1.164246]
[1718721558589,2.90588,3441.3,3441.1,2.771]
[1718721558881,2.90596,3441.2,3441.1,2.771]
[1718721559094,2.90605,3441.1,3440.6,2.771]
[1718721561262,2.90505,3442.3,3441.4,2.771]
[1718721561475,2.90505,3442.3,3440.9,3.0]
[1718721561476,2.3465,3443.3,3440.9,4.748]
[1718721561781,2.3465,3443.3,3441.9,2.771]
[1718721561782,2.90477,3442.7,3441.9,2.771]
[1718721561983,2.90462,3442.8,3441.9,2.771]
[1718721562286,2.90501,3442.4,3441.9,2.771]
[1718721562442,2.90478,3442.6,3441.9,2.771]
[1718721562639,2.9047,3442.7,3441.9,2.771]
[1718721562955,2.90495,3442.4,3441.9,2.771]
[1718721563141,2.9043,3443.2,3441.9,2.771]
[1718721563344,2.90445,3443.0,3441.9,2.771]
[1718721564179,2.90455,3442.9,3441.9,2.771]
[1718721564346,2.90455,3442.9,3441.9,3.3481]
[1718721564541,2.90486,3442.6,3441.9,2.771]
[1718721564778,2.90495,3442.4,3441.9,2.771]
[1718721564989,2.90488,3442.5,3441.9,2.771]
[1718721565203,5.80982,3442.5,3441.9,2.771]
[1718721565484,2.904,3443.6,3442.4,2.771]
[1718721565657,2.90447,3443.0,3442.4,2.771]
[1718721566766,2.90427,3443.2,3442.4,2.771]
[1718721566973,2.90368,3444.0,3442.4,2.771]
[1718721566974,2.90411,3443.4,3442.4,2.771]
[1718721567157,2.90388,3443.7,3442.4,2.771]
[1718721567158,2.90402,3443.5,3442.4,2.771]
[1718721567397,2.90417,3443.4,3442.5,0.2771]
[1718721567580,2.90425,3443.3,3442.5,0.2771]
[1718721569678,2.90468,3442.8,3442.4,2.771]
[1718721569998,2.3092,3443.4,3442.4,2.771]
[1718721570199,2.90504,3442.3,3441.8,2.771]
[1718721570415,2.90478,3442.6,3441.8,2.771]
[1718721570635,2.90437,3443.1,3441.8,2.771]
[1718721570915,2.90527,3442.1,3441.9,2.771]
[1718721571275,2.90528,3442.0,3441.9,2.771]
[1718721571476,2.90528,3442.0,3440.5,1.164156]
[1718721571477,2.90546,3441.8,3441.4,2.771]
[1718721571677,2.90538,3441.9,3441.4,2.771]
[1718721571895,2.9052,3442.1,3441.4,2.771]
[1718721572101,2.9052,3442.1,3441.4,3.0481]
[1718721572273,2.90514,3442.2,3442.0,2.771]
[1718721572488,2.90505,3442.3,3442.0,2.771]
[1718721573090,2.90495,3442.4,3442.0,2.771]
[1718721573497,2.90504,3442.3,3442.0,2.771]
[1718721573814,8.7156,3442.1,3442.0,2.771]
[1718721574314,8.7156,3442.1,3441.5,2.771]
[1718721574315,2.90561,3441.7,3441.5,2.771]
[1718721574517,2.9052,3442.1,3441.3,3.0]
[1718721574518,2.90539,3441.9,3441.3,3.0]
[1718721574824,2.90569,3441.6,3441.3,3.0]
[1718721575183,2.90539,3441.9,3441.2,2.771]
[1718721575409,2.90587,3441.3,3441.2,2.771]
[1718721575776,2.90599,3441.2,3440.7,2.771]
[1718721575983,2.90599,3441.2,3440.8,3.0]
[1718721576203,2.90587,3441.3,3440.7,2.771]
[1718721576435,3.196457,3441.3,3440.7,2.771]
[1718721576589,3.196457,3441.3,3439.1,5.67866]
[1718721576590,2.90646,3440.7,3440.2,2.771]
[1718721577081,2.90664,3440.4,3440.2,2.771]
[1718721577337,2.90672,3440.3,3440.2,2.771]
[1718721578789,2.90699,3440.0,3439.7,2.771]
[1718721578993,2.90664,3440.4,3439.7,2.771]
[1718721578994,2.90673,3440.3,3439.7,2.771]
[1718721579202,2.90681,3440.2,3439.7,2.771]
[1718721579433,2.90698,3440.0,3439.7,2.771]
[1718721580094,2.90617,3441.0,3439.7,2.771]
[1718721580423,2.90697,3440.0,3439.7,2.771]
[1718721580781,2.9069,3440.1,3439.7,2.771]
[1718721581932,2.90705,3440.0,3439.7,2.771]
[1718721582217,2.9069,3440.1,3439.7,2.771]
[1718721582602,2.90681,3440.2,3439.7,2.771]
[1718721582787,2.90713,3439.9,3439.7,2.771]
[1718721582990,2.90714,3439.8,3439.7,2.771]
[1718721583451,2.9073,3439.7,3439.2,2.771]
[1718721583591,2.90714,3439.8,3439.2,2.771]
[1718721583787,2.90706,3439.9,3439.2,2.771]
[1718721583997,2.90724,3439.7,3439.2,2.771]
[1718721586099,2.90654,3440.6,3439.3,0.05800516]
[1718721586260,2.602687,3441.3,3439.3,0.05800516]
[1718721586261,2.90671,3440.4,3440.0,2.771]
[1718721586415,2.602687,3441.3,3440.0,2.771]
[1718721586416,2.90626,3440.9,3440.0,2.771]
[1718721586748,3.1662387,3441.2,3439.5,2.771]
[1718721586749,2.90689,3440.1,3439.5,2.771]
[1718721587053,2.90673,3440.3,3439.5,3.3481]
[1718721587351,2.90696,3440.1,3439.5,2.771]
[1718721587538,6.1662387,3441.2,3439.5,2.771]
[1718721587539,3.2602687,3441.2,3439.5,2.771]
[1718721587742,2.90715,3439.8,3439.5,2.771]
[1718721587946,2.90707,3439.9,3439.5,2.771]
[1718721589017,2.90575,3441.5,3439.5,3.3481]
[1718721589239,2.90673,3440.3,3439.5,3.3481]
[1718721589447,2.90614,3441.0,3439.5,3.3481]
[1718721589448,2.90639,3440.7,3439.5,3.3481]
[1718721589653,2.90647,3440.6,3440.0,2.771]
[1718721590246,2.9061,3441.1,3440.0,2.771]
[1718721590465,2.9058,3441.4,3440.5,2.771]
[1718721590631,2.90569,3441.6,3441.0,2.771]
[1718721591125,2.90571,3441.5,3441.0,2.771]
[1718721591326,3.0,3442.3,3441.0,2.771]
[1718721591562,2.90569,3441.6,3441.0,2.771]
[1718721591969,2.90572,3441.5,3441.0,2.771]
[1718721592368,2.90564,3441.6,3441.0,2.771]
[1718721592570,2.90569,3441.6,3441.0,2.771]
[1718721593770,2.9058,3441.4,3441.0,2.771]
[1718721594711,2.90604,3441.1,3441.0,2.771]
[1718721594995,2.90604,3441.1,3440.5,3.29278984]
[1718721594996,2.9062,3441.0,3440.5,5.771]
[1718721595596,2.9062,3441.0,3440.5,2.771]
[1718721596089,2.90633,3440.8,3440.5,2.771]
[1718721596276,2.90623,3440.9,3440.5,2.771]
[1718721596657,2.90639,3440.7,3440.4,2.771]
[1718721597099,2.90655,3440.5,3440.4,2.771]
[1718721597289,2.90637,3440.8,3440.4,2.771]
[1718721597495,2.90646,3440.7,3440.4,2.771]
[1718721598305,2.90631,3440.8,3440.4,2.771]
[1718721600618,0.526985,3441.5,3440.4,2.771]
[1718721600757,2.3642,3441.6,3440.4,2.771]
[1718721600964,2.90663,3440.5,3440.4,2.771]
[1718721601783,5.81326,3440.5,3440.4,2.771]
[1718721602088,3.45572,3441.5,3440.4,2.771]
[1718721602089,2.90628,3440.9,3440.4,2.771]
[1718721602423,2.90639,3440.7,3440.5,2.771]
[1718721602612,2.9063,3440.8,3440.5,2.771]
[1718721602910,2.90639,3440.7,3440.5,2.771]
[1718721603776,2.90602,3441.2,3440.5,2.771]
[1718721604013,2.90605,3441.1,3441.0,2.771]
[1718721604607,5.8121,3441.1,3441.0,2.771]
[1718721604817,2.90605,3441.1,3441.0,2.771]
[1718721605275,2.90604,3441.1,3441.0,2.771]
[1718721606519,9.68298932,3441.1,3441.0,2.771]
[1718721606675,10.23298932,3441.1,3441.0,2.771]
[1718721607380,2.90633,3440.8,3440.5,2.771]
[1718721607775,2.90646,3440.6,3440.5,2.771]
[1718721607979,1.131279,3440.6,3440.2,2.771]
[1718721608191,8.72016,3440.3,3440.2,2.771]
[1718721609029,2.90672,3440.3,3440.2,2.771]
[1718721609316,5.81344,3440.3,3440.2,2.771]
[1718721610289,2.90672,3440.3,3440.2,2.771]
[1718721611100,2.90657,3440.5,3440.2,2.771]
[1718721611583,5.81344,3440.3,3440.2,2.771]
[1718721611787,6.36344,3440.3,3440.2,2.771]
[1718721612010,3.45672,3440.3,3440.2,2.771]
[1718721612223,5.22208,3441.2,3440.2,2.771]
[1718721612387,2.90621,3441.0,3440.7,2.771]
[1718721612745,5.8126,3440.8,3440.7,2.771]
[1718721613018,6.39386,3440.8,3440.7,2.771]
[1718721613325,3.48756,3440.8,3440.7,2.771]
[1718721613629,2.9063,3440.8,3440.7,2.771]
[1718721615901,2.90625,3440.9,3440.7,2.771]
[1718721616291,2.90625,3440.9,3439.7,3.0]
[1718721616508,2.90608,3441.1,3440.5,2.771]
[1718721616912,2.90597,3441.2,3440.5,2.771]
[1718721617347,2.90556,3441.7,3441.0,2.771]
[1718721617629,2.90516,3442.2,3441.6,2.07]
[1718721617791,2.90553,3441.8,3441.6,2.07]
[1718721617996,2.90554,3441.7,3441.6,2.07]